Cogmind - Beta 14 @@@ ROGUE MODE // 2024.09.11 @ 00:21:22 Player: Null_error Result: Destroyed by D-53 Grenadier with Mini Grenade Launcher Performance ------------- Evolutions (0) 0 Regions Visited (4) 800 Robots Destroyed (10) 50 Value Destroyed (253) 253 Prototype IDs (24) 480 Alien Tech Used (0) 0 Bonus (300) 300 TOTAL SCORE: 1883 Bonus ------- Aligned with FarCom 300 Cogmind --------- Core Integrity 0/250 Matter 300/300 Energy 139/140 System Corruption 0% Temperature Cool (0) Movement Rolling (155) Ox5 Location -9/Mines Parts ------- > --- POWER (1) -------- Light Deuterium Engine > --- PROPULSION (2) --- Wheel > --- UTILITY (2) ------ High-capacity Storage Unit Seismic Detector > --- WEAPON (2) ------- Field Lobotomy Kit Heavy Mace > --- INVENTORY (20) --- Light Ion Engine Improved Carbon-fiber Leg Gravmag System Small Storage Unit Small Storage Unit Structural Scanner Experimental Sensor Array Launcher Guidance Computer Transmission Jammer Hardened Medium Armor Plating System Restoration Module Recalibrator Plasma Cannon Remote Datajack Mining Laser Makeshift Hammer Peak State ------------ > --- POWER ------------ Light Deuterium Engine > --- PROPULSION ------- Wheel Wheel > --- UTILITY ---------- High-capacity Storage Unit Seismic Detector > --- WEAPON ----------- Field Lobotomy Kit Heavy Mace > --- INVENTORY -------- Light Ion Engine Improved Carbon-fiber Leg Gravmag System Small Storage Unit Small Storage Unit Structural Scanner Experimental Sensor Array Launcher Guidance Computer Transmission Jammer Hardened Medium Armor Plating System Restoration Module Recalibrator Plasma Cannon Remote Datajack Mining Laser Makeshift Hammer [Rating: 25] Favorites ----------- Power Light Deuterium Engine Engine Light Deuterium Engine Propulsion Wheel Treads Light Treads Wheel Wheel Utility Small Storage Unit Device Seismic Detector Storage Small Storage Unit Processor Signal Interpreter Protection Hardened Medium Armor Plating Weapon Heavy Mace Energy Gun Medium Laser Ballistic Gun Assault Rifle Special Weapon Field Lobotomy Kit Impact Weapon Heavy Mace Build | -11 -10 -10 -10 -9 ------- Run | Yrd Mat Min Exi Min Slots Evolved . | . . . . . Power . | . . . . . Propulsion . | . . . . . Utility . | . . . . . Weapon . | . . . . . Parts Attached 27 | 7 . 12 4 4 Power 2 | 1 . 1 . . Engine 2 | 1 . 1 . . Core . | . . . . . Reactor . | . . . . . Propulsion 5 | 2 . 3 . . Treads 2 | 2 . . . . Leg . | . . . . . Wheel 3 | . . 3 . . Hover . | . . . . . Flight . | . . . . . Utility 14 | 2 . 5 4 3 Device 6 | 1 . 3 1 1 Storage 6 | 1 . . 3 2 Processor 1 | . . 1 . . Hackware . | . . . . . Protection 1 | . . 1 . . Artifact . | . . . . . Weapon 6 | 2 . 3 . 1 Energy Gun 1 | 1 . . . . Energy Cannon . | . . . . . Ballistic Gun 1 | 1 . . . . Ballistic Cannon . | . . . . . Launcher . | . . . . . Special Weapon 1 | . . . . 1 Impact Weapon 3 | . . 3 . . Slashing Weapon . | . . . . . Piercing Weapon . | . . . . . Special Melee Weapon . | . . . . . Unidentified Prototypes 1 | . . 1 . . Parts Lost 4 | . 1 2 . 1 Power 1 | . . 1 . . Propulsion 1 | . . . . 1 Utility 1 | . 1 . . . Weapon 1 | . . 1 . . Highest Loss Streak 2 | . 1 2 . 1 To Critical Strikes . | . . . . . Average Slot Usage (%) 96 | . 98 86 100 99 Engine 13 | . 14 11 14 14 Treads 9 | . 28 15 . . Wheel 17 | . . 12 28 27 Device 11 | . 12 11 7 13 Storage 9 | . 14 2 6 14 Processor 4 | . . 3 14 . Energy Gun 6 | . 14 12 . . Ballistic Gun 3 | . 14 2 . . Impact Weapon 16 | . . 9 28 25 Peak Build Rating 25 | 7 7 22 22 25 Average Rating 14 | 5 6 11 19 19 On Entrance 10 | . 7 6 22 16 Naked Turns . | . . . . . Heaviest Build 91 | 15 15 19 51 91 Greatest Support 40 | 40 40 40 20 20 Greatest Overweight (x) 5 | 1 . 1 2 5 Average Overweight (x) . | . . . . 2 Largest Inventory Capacity 25 | 8 8 8 20 25 Average Capacity 10 | 7 8 5 7 20 Most Carried 16 | 1 4 5 8 16 Average Carried 6 | . 2 4 5 14 Final Capacity 20 | 8 8 5 20 20 Final Carried 16 | 1 4 5 8 16 Class Distribution -------------------- 100% | Mutant Dominant Class ---------------- Mutant | -10/Materials Mutant | -10/Mines Mutant | -10/Exiles Mutant | -9/Mines Resources | -11 -10 -10 -10 -9 ----------- Run | Yrd Mat Min Exi Min Matter Collected 537 | 260 82 110 50 35 Remotely 234 | 152 82 . . . Salvage Created 326 | 63 121 45 . 97 Parts 16 | 3 3 8 . 2 Haulers Intercepted . | . . . . . Recyclers Shooed . | . . . . . Parts Field Recycled . | . . . . . Retrieved Matter . | . . . . . Parts Self-Destructed . | . . . . . Prevented . | . . . . . Kills | -11 -10 -10 -10 -9 ------- Run | Yrd Mat Min Exi Min Combat Hostiles Destroyed 7 | . 3 1 . 3 Melee 2 | . 1 . . 1 Guns 3 | . 2 1 . . Classes Destroyed 4 | 1 1 2 . . Builder 2 | . . 2 . . Recycler 1 | 1 . . . . Swarmer 1 | . . 1 . . Grunt 6 | . 3 . . 3 Best Kill Streak 3 | 1 2 2 . 3 Combat Bots Only 3 | . 2 1 . 3 Max Kills in Single Turn 1 | 1 1 1 . 1 Gunslinging . | . . . . . Exploded . | . . . . . Melee 1 | . 1 . . 1 Uniques/NPCs Destroyed . | . . . . . Combat | -11 -10 -10 -10 -9 -------- Run | Yrd Mat Min Exi Min Hostile Shots Fired 94 | . 51 23 . 20 Missed 19 | . 9 5 . 5 Damage Taken 1016 | . 581 147 . 288 Core 273 | . 161 21 . 91 Absorbed by Shields . | . . . . . Core Remaining (%) 100 | 100 . . . . Volleys Fired 38 | . 24 13 . 1 Largest 2 | . 2 2 . 1 Hottest 70 | . 70 70 . . Shots Fired 64 | . 48 15 . 1 Gun 63 | . 48 15 . . Cannon . | . . . . . Launcher . | . . . . . Special 1 | . . . . 1 Kinetic 26 | . 24 2 . . Thermal 37 | . 24 13 . . Explosive . | . . . . . Electromagnetic . | . . . . . Robot Hit Streak 4 | . 4 3 . 4 Robot Miss Streak 6 | . 6 2 . . Penetration Max . | . . . . . Secondary Targets . | . . . . . Shots Hit Robots 41 | . 24 7 . 10 Core Hits 10 | . 6 3 . 1 Critical Kills . | . . . . . Critical Parts Destroyed . | . . . . . Critical Strikes 2 | . 1 1 . . Burn 2 | . 1 1 . . Melee Attacks 12 | . . . . 12 Impact 12 | . . . . 12 Slashing . | . . . . . Piercing . | . . . . . Sneak Attacks . | . . . . . Combat Hostiles . | . . . . . Follow-up Attacks 1 | . . . . 1 Damage Inflicted 858 | 1 325 101 . 431 Guns 420 | . 319 101 . . Cannons . | . . . . . Explosions . | . . . . . Melee 431 | . . . . 431 Ramming 7 | 1 6 . . . Kinetic 183 | . 183 . . . Thermal 237 | . 136 101 . . Explosive . | . . . . . Electromagnetic . | . . . . . Impact 431 | . . . . 431 Slashing . | . . . . . Piercing . | . . . . . Highest Corruption . | . . . . . Average Corruption . | . . . . . Corruption Purged . | . . . . . Corruption Blocked . | . . . . . Overload Shots . | . . . . . Overflow Damage 44 | . . . . 44 Projectiles . | . . . . . Explosions . | . . . . . Melee 44 | . . . . 44 Knockbacks . | . . . . . Impact . | . . . . . Kinetic . | . . . . . Secondary . | . . . . . Self-Inflicted Damage . | . . . . . Shots . | . . . . . Rammed 3 | . 3 . . . Targets Rammed 5 | 1 4 . . . Kicked . | . . . . . Crushed 2 | 1 1 . . . Highest Temperature 288 | . 288 6 . . Average Temperature 136 | . 141 3 . . Received Heat Transfer 399 | . 339 . . 60 Siege Activations . | . . . . . Robots Corrupted 2 | . . . . 2 Combat Hostiles 2 | . . . . 2 Parts Fried 2 | . . . . 2 Impact Corruptions 4 | . . . . 4 Robots Melted . | . . . . . Combat Hostiles . | . . . . . Parts Melted 2 | . 1 1 . . Heat Transferred 851 | . 481 370 . . Parts Sabotaged . | . . . . . Parts Stolen . | . . . . . Parts Stripped . | . . . . . Power Chain Reactions . | . . . . . Alert | -11 -10 -10 -10 -9 ------- Run | Yrd Mat Min Exi Min Peak Influence 93 | 5 93 56 . 85 Initial 36 | . 3 36 . . Average 28 | 4 25 43 . 26 Maximum Alert Level . | . . . . . Low Security (%) 100 | 100 100 100 . 100 Level 1 . | . . . . . Level 2 . | . . . . . Level 3 . | . . . . . Level 4 . | . . . . . Level 5 . | . . . . . High Security . | . . . . . Max Security . | . . . . . Squads Dispatched 3 | . 2 . . 1 Investigation 1 | . . . . 1 Extermination . | . . . . . Reinforcement 2 | . 2 . . . Assault . | . . . . . Garrison . | . . . . . Intercept . | . . . . . Searches Triggered . | . . . . . Construction Impeded . | . . . . . Haulers Reinforced . | . . . . . Active Scanning Responses . | . . . . . Cargo Convoy Interrupts . | . . . . . Stealth | -11 -10 -10 -10 -9 --------- Run | Yrd Mat Min Exi Min Distress Signals 3 | . 3 . . . Communications Jammed . | . . . . . Distress Signals . | . . . . . Times Spotted 21 | . 12 3 . 6 Peak Tracking Total 7 | . 7 3 . 3 Tactical Retreats 1 | . . . . 1 Traps | -11 -10 -10 -10 -9 ------- Run | Yrd Mat Min Exi Min Traps Triggered . | . . . . . Indirectly . | . . . . . Trap Hack Attempts . | . . . . . Triggered . | . . . . . Disarmed . | . . . . . Reprogrammed . | . . . . . Reused . | . . . . . Traps Extracted . | . . . . . Installed . | . . . . . Triggered . | . . . . . Machines | -11 -10 -10 -10 -9 ---------- Run | Yrd Mat Min Exi Min Machines Disabled 1 | . 1 . . . Max in Single Turn 1 | . 1 . . . Machines Repaired . | . . . . . Machines Dismantled . | . . . . . Machines Sabotaged . | . . . . . Overloaded Fab Kills . | . . . . . Hacking | -11 -10 -10 -10 -9 --------- Run | Yrd Mat Min Exi Min Machines Accessed 5 | . 1 1 2 1 Terminals 1 | . 1 . . . Fabricators . | . . . . . Repair Stations . | . . . . . Recycling Units . | . . . . . Scanalyzers . | . . . . . Garrison Access . | . . . . . Total Hacks 6 | . 2 1 2 1 Successful 5 | . 1 1 2 1 Failed 1 | . 1 . . . Catastrophic . | . . . . . Database Lockouts . | . . . . . Manual 1 | . . . 1 . Terminals 2 | . 2 . . . Fabricators . | . . . . . Repair Stations . | . . . . . Recycling Units . | . . . . . Scanalyzers . | . . . . . Garrison Access . | . . . . . Terminal Hacks 5 | . 1 1 2 1 Record 1 | . . . 1 . Open Door 2 | . . 1 . 1 Locate Traps 1 | . 1 . . . Derelict Proto ID Bank 1 | . . . 1 . Fabricator Hacks . | . . . . . Repair Station Hacks . | . . . . . Recycling Unit Hacks . | . . . . . Scanalyzer . | . . . . . Garrison Access Hacks . | . . . . . Unauthorized Hacks . | . . . . . Terminals . | . . . . . Fabricators . | . . . . . Repair Stations . | . . . . . Recycling Units . | . . . . . Scanalyzers . | . . . . . Garrison Access . | . . . . . Data Cores Recovered . | . . . . . Used . | . . . . . Hacking Detections 1 | . 1 . . . Full Trace Events . | . . . . . Feedback Events . | . . . . . Feedback Blocked . | . . . . . Robot Schematics Acquired . | . . . . . Robots Built . | . . . . . Authchips . | . . . . . Time . | . . . . . Total Robot Build Rating . | . . . . . Part Schematics Acquired . | . . . . . Parts Built . | . . . . . Authchips . | . . . . . Time . | . . . . . Total Part Build Rating . | . . . . . Parts Repaired . | . . . . . Time . | . . . . . Parts Recycled . | . . . . . Recycled Matter . | . . . . . Retrieved Matter . | . . . . . Retrieved Components . | . . . . . Parts Scanalyzed . | . . . . . Part Schematics Acquired . | . . . . . Parts Damaged . | . . . . . Bothacking | -11 -10 -10 -10 -9 ------------ Run | Yrd Mat Min Exi Min Used RIF Installer . | . . . . . Robots Hacked . | . . . . . Non-combat . | . . . . . Combat . | . . . . . Robot Hacks Applied . | . . . . . Relay Couplers Released . | . . . . . Fabnet Peak Effective % . | . . . . . Robots Rewired . | . . . . . Allies Hacked . | . . . . . Hacks Repelled . | . . . . . Allies | -11 -10 -10 -10 -9 -------- Run | Yrd Mat Min Exi Min Total Allies 1 | . . . . 1 Largest Group 1 | . . . . 1 Highest-Rated Group 34 | . . . . 34 Highest-Rated Ally 34 | . . . . 34 Total Orders . | . . . . . Ally Attacks . | . . . . . Total Damage . | . . . . . Kills . | . . . . . Allies Corrupted . | . . . . . Allies Melted . | . . . . . Field Lobotomies 1 | . . . . 1 Intel | -11 -10 -10 -10 -9 ------- Run | Yrd Mat Min Exi Min Robot Analysis Total . | . . . . . Derelict Logs Recovered . | . . . . . Drone Launches . | . . . . . Drone Recoveries . | . . . . . Exploration | -11 -10 -10 -10 -9 ------------- Run | Yrd Mat Min Exi Min Turns Passed 1172 | 81 248 246 266 331 Spaces Moved 780 | 45 105 185 314 131 Core 3 | 3 . . . . Treads 208 | 42 105 61 . . Legs . | . . . . . Wheels 569 | . . 124 314 131 Hover . | . . . . . Flight . | . . . . . Fastest Speed 50 | 50 160 80 80 110 Average Speed 107 | 153 160 106 82 111 Slowest Speed 160 | 160 160 160 110 155 Overloaded Moves . | . . . . . Propulsion Burnouts . | . . . . . Robots Hopped . | . . . . . Cave-ins Triggered . | . . . . . Exploration Rate (%) 30 | 4 28 36 65 17 Regions Visited 4 Branch Regions 3 Pre-discovered Areas 1 | . . . 1 . Known Exits Taken 2 | . . 1 1 . Unknown Exits Taken 2 | 1 1 . . . Scrap Searched 2 | . . 1 . 1 Spaces Dug . | . . . . . Terrain Destroyed . | . . . . . Melee . | . . . . . Projectile . | . . . . . AOE . | . . . . . Terrain Rammed . | . . . . . Walls Destroyed . | . . . . . Machines Disabled . | . . . . . Actions | -11 -10 -10 -10 -9 --------- Run | Yrd Mat Min Exi Min Total 1023 | 53 135 215 318 302 Wait 146 | . . . . 146 Move 776 | 44 104 184 313 131 Hop . | . . . . . Pick Up 14 | 1 3 1 1 8 Fast Attach 12 | 7 . 5 . . Attach . | . . . . . Detach 1 | . . 1 . . Swap 15 | . . 7 4 4 Drop 5 | . . 4 . 1 Fire 38 | . 24 13 . 1 Melee 11 | . . . . 11 Ram . | . . . . . Kick . | . . . . . Crush 5 | 1 4 . . . Escape Stasis . | . . . . . Rewire . | . . . . . Trap . | . . . . . Miscellaneous . | . . . . . Route ------- -11/Scrapyard -10/Materials -10/Mines -10/Exiles (discovered 2 exits: *Min x2) -9/Mines History --------- Turn | Location | Event 11 | -11/Scrapyard | Discovered new exit (range 15) 82 | -11/Scrapyard | Entered Materials 263 | -10/Materials | Discovered new exit (range 12) 301 | -10/Materials | Core integrity fell below 50% 311 | -10/Materials | Build established: Mutant 330 | -10/Materials | Entered Mines 370 | -10/Mines | Met a Derelict who couldn't figure out how to use a Trap Extractor 515 | -10/Mines | Found a damaged Exp. Sensor Array with a note attached 516 | -10/Mines | Found Prototype Device 516 | -10/Mines | Identified Exp. Sensor Array 536 | -10/Mines | A weapon hastily lodged in a ceiling crevice suddenly fell to the ground 572 | -10/Mines | Deemed a non-threat by the Exiles lab entrance 572 | -10/Mines | Discovered new exit (range 5) 574 | -10/Mines | Identified exit to Exiles 576 | -10/Mines | Entered Exiles 590 | -10/Exiles | Discovered new exit (range 15) 600 | -10/Exiles | Identified exit to Mines 619 | -10/Exiles | Met 8R-AWN 631 | -10/Exiles | Met EX-HEX 661 | -10/Exiles | Met EX-DEC 666 | -10/Exiles | Learned location of Zion (-6) 688 | -10/Exiles | Met EX-BIN 697 | -10/Exiles | Aligned with FarCom system 697 | -10/Exiles | Given EX-Vault access code 719 | -10/Exiles | Opened EX-Vault 728 | -10/Exiles | Found Field Lobotomy Kit 749 | -10/Exiles | Warned to stay clear of 0b10 Research branches 833 | -10/Exiles | Discovered exit to Mines (range 10) 842 | -10/Exiles | Left Exiles lab with Field Lobotomy Kit 842 | -10/Exiles | Entered Mines 850 | -9/Mines | Assembled infested the area 909 | -9/Mines | Met a Derelict shopkeep closing up shop 1044 | -9/Mines | Core integrity fell below 20% 1166 | -9/Mines | Assimilated D-53 Grenadier with FLK Orb 1173 | -9/Mines | Destroyed by D-53 Grenadier with Mini Grenade Launcher Last Messages --------------- 01068_ Ion Engine fried. 01069_ Destroyed Heat Sink. 01069_ G-34 Mercenary system corrupted by crushing effect. 01069_ G-34 Mercenary misfires. 01070_ G-34 Mercenary system terminally corrupted. 01070_ Aluminum Leg fried. 01073_ Destroyed Heat Sink. 01073_ G-34 Mercenary system corrupted by crushing effect. 01075_ G-34 Mercenary destroyed. 01078_ Acquired 30 matter. 01096_ Connecting with SHOP.Sys... 01166_ Wheel destroyed. 01166_ Machine disabled. 01166_ D-53 Grenadier assimilated. 01167_ SHOP.Sys disabled. 01172_ The unstable cave ceiling collapses. 01173_ Acquired 5 matter. Map ----- +----------------------------------------------------+ | ????????????????????????????????????? | | ??????? ????????????????????????????? | | ??????? ????????????????????????????? | | ??????? ????????????????????????????? | | ??????? ????????????????????????????? | | ??????? ????????????????????????????? | | ??????? ???????????####?????????????? | | ??????? ??????????## ##????????????? | | ?????## ??????????# ##???????????? | | ????? ??????????# ##??????????? | | ?????# #??????????# ##?????????? | | ?????# #?????????## #?????????? | | ?????# #????????## #?????????? | | ?????# #?????#### ##?????????? | | ????## #????## #??????????? | | ???## ###??# ### #??????????? | | ???# ##?# ##?# #??????????? | | ???# ### #??# #??????????? | | ???+ ! #??# ##?????????? | | ???+ ##?# #?????????? | | ???# ### %[ #?### #?????????? | | ???# #?#/ ## ##???# #?????????? | | ???### ##?########????# #?????????? | | ???# ## #???????????#### ###???????? | | ??# ? #??????????## = ##??????? | | ? #?????????## # @ #??????? | | ### #?????????#" = #??????? | | ??# #?????????#" d #??????? | | ???# #?????????# #??????? | | #???# #?????????# d #??????? | | ##????# #?????????#" #??????? | | ??????# ??????????#" #??????? | | ??????# ??????????#### #??????? | | ??????###?????????????## #??????? | | ???????????????????????#######??????? | | ????????????????????????????????????? | | ????????????????????????????????????? | | ????????????????????????????????????? | | ????????????????????????????????????? | | ????????????????????????????????????? | | ????????????????????????????????????? | | ????????????????????????????????????? | | ????????????????????????????????????? | | ????????????????????????????????????? | | ????????????????????????????????????? | | ????????????????????????????????????? | | ????????????????????????????????????? | | | | | | | +----------------------------------------------------+ Best States ------------- Heat Dissipation 25 Energy Generation 14 Energy Capacity 250 Matter Stores 300 Matter Capacity 300 Sight Range 16 Robot Scan Range 20 Terrain Scan Range 14 Terrain Scan Density 10 Armor Coverage 225 Evasion (%) 44 Recoil Reduction 2 Item Schematics ----------------- None Robot Schematics ------------------ None Fabricated ------------ Nothing Alien Tech Used ----------------- None Achievements -------------- None Challenges ------------ None Game ------ Seed BurstSuperchargedGravjet Manual? 0 Play Time 00:13:13 Cumulative 34.9 hours Start 2024.09.11 @ 00:11:07 End 2024.09.11 @ 00:21:22 Sessions 1 Manual Loads 0 Difficulty Rogue Special Mode None Game No. 40 Rogue 40 Adventurer 0 Explorer 0 Win Type - Total 0 Types 0/0/0/0/0/0/0/0/0 Lore% 18 Gallery% 36 Achievement% 26 Wizard Run 0 Options --------- Layout 2 ASCII 0 Keyboard 1 Movement Numpad Keybinds 0 Fullscreen 2 Font 24/Smallcaps Map View 50x44 Zoom Use 0% Tactical HUD 1 Map Filters NONE Filters LOW_CONTRAST(5,20,15) Steam 1 RUN: 963c25f8-268c-4548-b94a-7389a3fc15a3